fUST/lending_fUST_20240811
["ID","MTS","AMOUNT","RATE_DAILY","PERIOD"]
[334619462,1723353039739,-500.0,0.00018946,2]
[334619463,1723353039751,-500.0,0.00018946,2]
[334619464,1723353039761,-500.0,0.00018946,2]
[334619465,1723353039772,-500.0,0.00018946,2]
[334619466,1723353039785,-500.0,0.00018946,2]
[334619467,1723353039798,-500.0,0.00018946,2]
[334619468,1723353039811,-500.0,0.00018946,2]
[334619469,1723353039822,-500.0,0.00018946,2]
[334619470,1723353039834,-500.0,0.00018946,2]
[334619471,1723353039845,-506.72881791,0.00018946,2]
[334619472,1723353039858,-500.0,0.00018946,2]
[334619473,1723353039871,-500.0,0.00018946,2]
[334619474,1723353039883,-59114.1968757,0.00018947,2]
[334619475,1723353039896,-650.66277187,0.00018949,2]
[334619476,1723353039907,-406.56784397,0.00018949,2]
[334619477,1723353039918,-530.67717095,0.00018949,2]
[334619478,1723353039928,-530.67717095,0.00018949,2]
[334619479,1723353039940,-530.67717095,0.00018949,2]
[334619480,1723353039951,-530.67717095,0.00018949,2]
[334619481,1723353039963,-530.67717095,0.00018949,2]
[334619482,1723353039977,-530.67717095,0.00018949,2]
[334619483,1723353039988,-530.67717095,0.00018949,2]
[334619484,1723353040001,-530.67717095,0.00018949,2]
[334619485,1723353040014,-530.67717095,0.00018949,2]
[334619486,1723353040027,-530.67717095,0.00018949,2]
[334619487,1723353040041,-530.67717095,0.00018949,2]
[334619488,1723353040052,-530.67717095,0.00018949,2]
[334619489,1723353040063,-530.67717095,0.00018949,2]
[334619490,1723353040073,-530.67717095,0.00018949,2]
[334619491,1723353040084,-85836.8778983,0.0001895,2]
[334619492,1723353040095,-20777.37607493,0.00018999,2]
[334619493,1723353040107,-419.01195129,0.00019003,2]
[334619494,1723353040119,-419.01195129,0.00019079,2]
[334619495,1723353040130,-8836.92013464,0.00019101,2]
[334619497,1723353040141,-14251.4449406,0.00019102,2]
[334619499,1723353040152,-3090.31067256,0.00019102,2]
[334619501,1723353040164,-9648.27796999,0.00019139,2]
[334619503,1723353040175,-5240.178669,0.00019154,2]
[334619505,1723353040187,-2710.33053727,0.00019155,2]
[334619507,1723353040198,-1163.86062826,0.00019155,2]
[334619509,1723353040209,-419.01195129,0.00019156,2]
[334619510,1723353040221,-85836.8778983,0.00019167,2]
[334619511,1723353040232,-1717.88097841,0.00019167,2]
[334619512,1723353040243,-694.71379029,0.00019167,2]
[334619514,1723353040254,-2126.37973248,0.00019177,2]
[334619516,1723353040266,-288.02845211,0.00019177,2]
[334619518,1723353040277,-1384.13048712,0.00019177,2]
[334619519,1723353040289,-1651.70540156,0.00019177,2]
[334619520,1723353040301,-1764.53474525,0.00019177,2]
[334619522,1723353040312,-250.53341872,0.00019177,2]
[334619524,1723353040323,-403.68936104,0.00019177,2]
[334619526,1723353040334,-1109.82295728,0.00019177,2]
[334619527,1723353040347,-500.0,0.00019178,2]
[334619528,1723353040358,-377.23988478,0.00019178,2]
[334619529,1723353040369,-500.0,0.00019178,2]
[334619530,1723353040381,-85836.8778983,0.00019246,2]
[334619531,1723353040393,-1612.06535955,0.00019256,2]
[334619532,1723353040404,-189.91186464,0.00019256,2]
[334619533,1723353040414,-155.236574,0.00019256,2]
[334619534,1723353040424,-156.96173825,0.00019256,2]
[334619535,1723353040434,-534.23635652,0.00019256,2]
[334619536,1723353040444,-236.0,0.00019344,2]
[334619537,1723353040453,-932.99527997,0.00019451,2]
[334619538,1723353040463,-155.1708846,0.00019451,2]
[334619539,1723353040472,-484.59525071,0.00019451,2]
[334619541,1723353040483,-42377.77535747,0.00019451,2]
[334619566,1723353040721,-159.38116829,0.00019451,2]
[334619569,1723353040742,-154.78689557,0.00019451,2]
[334619570,1723353040755,-194.74416001,0.00019451,2]
[334619572,1723353040765,-289.62926841,0.00019451,2]
[334619573,1723353040774,-155.22287942,0.00019451,2]
[334619574,1723353040784,-623.77169031,0.00019451,2]
[334619575,1723353040793,-174.67965412,0.00019451,2]
[334619576,1723353040804,-355.8152403,0.00019451,2]
[334619577,1723353040813,-162.24956235,0.00019451,2]
[334619578,1723353040823,-154.77557542,0.00019451,2]
[334619579,1723353040833,-279.74053787,0.00019451,2]
[334619580,1723353040842,-157.90486107,0.00019451,2]
[334619581,1723353040852,-154.77557542,0.00019451,2]
[334619582,1723353040862,-157.05367525,0.00019477,2]
[334619583,1723353040871,-154.77557542,0.00019477,2]
[334619584,1723353040881,-413.29975831,0.00019477,2]
[334619585,1723353040890,-328.5656712,0.00019477,2]
[334619586,1723353040900,-385.64387344,0.00019477,2]
[334619587,1723353040909,-154.77557542,0.00019477,2]
[334619588,1723353040919,-2851.75877843,0.00019477,2]
[334619589,1723353040928,-1091.84231945,0.00019477,2]
[334619590,1723353040937,-154.77557542,0.00019477,2]
[334619591,1723353040946,-154.77557542,0.00019477,2]
[334619592,1723353040955,-160.17752587,0.00019477,2]
[334619593,1723353040964,-209.37253615,0.00019477,2]
[334619594,1723353040973,-154.77557542,0.00019477,2]
[334619595,1723353040983,-686.8095988,0.00019477,2]
[334619596,1723353040992,-180.63105164,0.00019477,2]
[334619597,1723353041002,-154.77557542,0.00019477,2]
[334619598,1723353041011,-209.98990113,0.00019477,2]
[334619599,1723353041021,-1000.0,0.000195,2]
[334619600,1723353041029,-3000.0,0.000195,2]
[334619601,1723353041039,-586.35319385,0.00019547,2]
[334619602,1723353041048,-217.85587568,0.00019547,2]
[334619603,1723353041063,-1612.44990828,0.00019899,2]
[334619604,1723353041073,-19701.30744855,0.00019989,2]
[334619608,1723353043616,-470.7353615,0.00017403,2]
[334619609,1723353043627,-522.63402036,0.00018989,2]
[334619612,1723353043638,-2141.01768748,0.00019167,2]
[334619614,1723353043649,-178.64182413,0.00019451,2]
[334619616,1723353043659,-7007.90701187,0.00019451,2]
[334619617,1723353043671,-154.77557542,0.00019547,2]
[334619618,1723353043681,-414.28019691,0.00019547,2]
[334619619,1723353043692,-66135.57044975,0.00019989,2]
[334619620,1723353043702,-1413.0,0.00019994,2]
[334619621,1723353043715,-404.08727484,0.00019999,2]
[334619622,1723353043727,-157.76480899,0.00019999,2]
[334619623,1723353043737,-404.08727484,0.00019999,2]
[334619624,1723353043747,-728.15079492,0.00019999,2]
[334619625,1723353043757,-532.72454116,0.00019999,2]
[334619626,1723353043767,-188.09011397,0.00019999,2]
[334619627,1723353043777,-494.6780177,0.00019999,2]
[334619628,1723353043788,-532.72454116,0.00019999,2]
[334619629,1723353043799,-816.94684465,0.00019999,4]
[334619630,1723353043809,-158.35455422,0.0002,2]
[334619631,1723353043819,-33541.92738044,0.0002027,2]
[334619639,1723353044132,-210.46611834,0.00019547,2]
[334619641,1723353044142,-4383.81020481,0.0002027,2]
[334619685,1723353144306,157.294017,0.00014247,2]
[334619686,1723353579773,3000.0,0.00014898,2]
[334619687,1723353598857,164.695183,0.00014247,2]
[334619688,1723353685355,288.313469,0.0001487,2]
[334619691,1723353807930,24900.0,0.00014586,2]
[334619693,1723354042171,-250.0,0.00015044,2]
[334619694,1723354042196,-250.0,0.00015086,2]
[334619695,1723354042222,-250.0,0.00015127,2]
[334619696,1723354042245,-250.0,0.00015168,2]
[334619697,1723354042270,-250.0,0.00015209,2]
[334619698,1723354042294,-250.0,0.00015251,2]
[334619699,1723354042317,-250.0,0.00015292,2]
[334619700,1723354042339,-250.0,0.00015333,2]
[334619701,1723354042361,-250.0,0.00015375,2]
[334619702,1723354042383,-250.0,0.00015416,2]
[334619703,1723354042407,-250.0,0.00015457,2]
[334619704,1723354042432,-250.0,0.00015498,2]
[334619705,1723354042456,-250.0,0.0001554,2]
[334619706,1723354042482,-250.0,0.00015581,2]
[334619707,1723354042507,-250.0,0.00015622,2]
[334619708,1723354042535,-250.0,0.00015663,2]
[334619709,1723354042560,-8.12636759,0.00015705,2]
[334619710,1723354044382,3000.0,0.00014798,2]
[334619711,1723354076449,157.294017,0.00014247,2]
[334619712,1723354092988,1319.39626494,0.00013,2]
[334619713,1723354141836,188.7073591,9.999e-05,2]
[334619714,1723354151117,-288.3134706,0.00015572,2]
[334619715,1723354151139,-241.87363241,0.00015705,2]
[334619716,1723354151162,-300.0,0.00015707,2]
[334619717,1723354151185,-300.0,0.00015707,2]
[334619718,1723354151208,-1383.36554686,0.00015708,2]
[334619719,1723354151232,-2117.43375407,0.00015708,2]
[334619720,1723354170036,160.25653991,9.999e-05,2]
[334619771,1723354232997,-7480.80771621,0.00015708,2]
[334619772,1723354233007,-403.93211347,0.00015712,2]
[334619773,1723354233017,-250.0,0.00015746,2]
[334619774,1723354233198,-239.21892082,0.00015751,2]
[334619775,1723354233208,-566.40490977,0.00015751,2]
[334619776,1723354233217,-157.05367525,0.00015751,2]
[334619777,1723354233227,-192.26710228,0.00015757,2]
[334619778,1723354233236,-385.64387344,0.00015757,2]
[334619779,1723354233246,-328.5656712,0.00015757,2]
[334619780,1723354233255,-250.0,0.00015787,2]
[334619781,1723354233264,-250.0,0.00015828,2]
[334619782,1723354233274,-11447.0423555,0.0001611,2]
[334619783,1723354233283,-154.77557542,0.00017019,2]
[334619784,1723354233292,-534.3800288,0.0001784,2]
[334619785,1723354233301,-12837.82498729,0.00018,2]
[334619794,1723354238831,-154.76784823,0.00016532,2]
[334619795,1723354238842,-1945.19322452,0.00018,2]
[334619796,1723354238853,-3238.07262139,0.00018447,2]
[334619797,1723354238862,-1615.46136205,0.00018557,2]
[334619798,1723354238872,-3319.19196924,0.00018804,2]
[334619799,1723354238883,-833.90450018,0.00018825,2]
[334619800,1723354238894,-154.76784823,0.00018845,2]
[334619801,1723354238904,-319.99782942,0.00018899,2]
[334619802,1723354238916,-2809.2266792,0.000189,2]
[334619803,1723354238928,-331.945655,0.00018904,2]
[334619804,1723354238938,-154.76784823,0.0001891,2]
[334619805,1723354238950,-810.66153205,0.0001891,2]
[334619806,1723354238960,-810.66153205,0.00018921,2]
[334619807,1723354238969,-414.28019691,0.00018921,2]
[334619808,1723354238978,-183.26546668,0.00018921,2]
[334619809,1723354238988,-4858.76427069,0.00018933,2]
[334619810,1723354238997,-547.26835073,0.00018988,2]
[334619811,1723354239006,-500.0,0.00018988,2]
[334619812,1723354239016,-500.0,0.00018988,2]
[334619813,1723354239026,-500.0,0.00018988,2]
[334619814,1723354239036,-500.0,0.00018988,2]
[334619815,1723354239047,-500.0,0.00018988,2]
[334619816,1723354239056,-500.0,0.00018988,2]
[334619817,1723354239065,-500.0,0.00018988,2]
[334619818,1723354239075,-500.0,0.00018988,2]
[334619819,1723354239088,-500.0,0.00018988,2]
[334619820,1723354239097,-500.0,0.00018988,2]
[334619821,1723354239106,-500.0,0.00018988,2]
[334619822,1723354239115,-500.0,0.00018988,2]
[334619823,1723354239125,-500.0,0.00018988,2]
[334619824,1723354239134,-500.0,0.00018988,2]
[334619825,1723354239143,-500.0,0.00018988,2]
[334619826,1723354239153,-500.0,0.00018988,2]
[334619827,1723354239164,-500.0,0.00018988,2]
[334619828,1723354239173,-500.0,0.00018988,2]
[334619829,1723354239183,-500.0,0.00018988,2]
[334619830,1723354239192,-500.0,0.00018988,2]
[334619831,1723354239202,-500.0,0.00018988,2]
[334619832,1723354239211,-500.0,0.00018988,2]
[334619833,1723354239221,-500.0,0.00018988,2]
[334619834,1723354239230,-500.0,0.00018988,2]
[334619835,1723354239239,-500.0,0.00018988,2]
[334619836,1723354239248,-500.0,0.00018988,2]
[334619837,1723354239257,-500.0,0.00018988,2]
[334619838,1723354239268,-500.0,0.00018988,2]
[334619839,1723354239277,-500.0,0.00018988,2]
[334619840,1723354239286,-500.0,0.00018988,2]
[334619841,1723354239297,-500.0,0.00018988,2]
[334619842,1723354239307,-500.0,0.00018988,2]
[334619843,1723354239317,-500.0,0.00018988,2]
[334619844,1723354239327,-500.0,0.00018988,2]
[334619845,1723354239338,-500.0,0.00018988,2]
[334619846,1723354239347,-500.0,0.00018988,2]
[334619847,1723354239356,-500.0,0.00018988,2]
[334619848,1723354239366,-500.0,0.00018988,2]
[334619849,1723354239374,-500.0,0.00018988,2]
[334619850,1723354239383,-500.0,0.00018988,2]
[334619851,1723354239392,-500.0,0.00018988,2]
[334619852,1723354239402,-156.87111249,0.00018989,2]
[334619853,1723354239414,-522.63402036,0.00018999,2]
[334619854,1723354239425,-305.72461448,0.00018999,2]
[334619855,1723354239437,-308.85439572,0.00018999,2]
[334619856,1723354239447,-154.77557542,0.0001904,2]
[334619857,1723354239457,-209.98990113,0.0001904,2]
[334619858,1723354239467,-160.17752587,0.0001904,2]
[334619859,1723354239477,-20777.37607493,0.0001904,2]
[334619860,1723354239489,-201.07234596,0.00019139,2]
[334619861,1723354239500,-8832.04249548,0.00019139,2]
[334619862,1723354239510,-201.07234596,0.00019139,2]
[334619863,1723354239521,-494.6780177,0.00019167,2]
[334619864,1723354239530,-494.6780177,0.00019167,2]
[334619865,1723354239540,-2141.01768748,0.00019167,2]
[334619866,1723354239550,-1163.20103468,0.00019167,2]
[334619867,1723354239560,-1716.44665799,0.00019167,2]
[334619868,1723354239570,-3088.5478168,0.00019167,2]
[334619869,1723354239580,-189.91186464,0.00019167,2]
[334619870,1723354239591,-2851.75877843,0.00019167,2]
[334619871,1723354239601,-7007.90701187,0.00019177,2]
[334619872,1723354239610,-1999.97535316,0.00019177,2]
[334619873,1723354239619,-153.02665387,0.00019178,2]
[334619874,1723354239628,-168.30708,0.00019178,2]
[334619875,1723354239638,-4858.76427069,0.00019202,2]
[334619876,1723354239647,-284.59749077,0.00019245,2]
[334619877,1723354239656,-455.46394031,0.00019245,2]
[334619878,1723354239668,-500.0,0.00019245,2]
[334619879,1723354239677,-500.0,0.00019245,2]
[334619880,1723354239687,-500.0,0.00019245,2]
[334619881,1723354239695,-500.0,0.00019245,2]
[334619882,1723354239704,-500.0,0.00019245,2]
[334619883,1723354239713,-500.0,0.00019245,2]
[334619884,1723354239723,-500.0,0.00019245,2]
[334619885,1723354239732,-344.941092,0.00019245,2]
[334619886,1723354239742,-500.0,0.00019245,2]
[334619887,1723354239752,-500.0,0.00019245,2]
[334619888,1723354239762,-500.0,0.00019245,2]
[334619889,1723354239772,-500.0,0.00019245,2]
[334619890,1723354239783,-500.0,0.00019245,2]
[334619891,1723354239793,-500.0,0.00019245,2]
[334619892,1723354239804,-82420.6137277,0.00019246,2]
[334619893,1723354239816,-250.53341872,0.00019256,2]
[334619894,1723354239826,-156.87357167,0.00019256,2]
[334619895,1723354239838,-1108.60993125,0.00019256,2]
[334619896,1723354239848,-2610.04887648,0.00019256,2]
[334619897,1723354239858,-153.0,0.00019279,2]
[334619898,1723354239868,-153.0,0.00019279,2]
[334619899,1723354239877,-153.0,0.00019279,2]
[334619900,1723354239887,-153.0,0.00019279,2]
[334619901,1723354239897,-153.0,0.00019279,2]
[334619902,1723354239908,-153.0,0.00019279,2]
[334619903,1723354239920,-126801.77280877,0.0001944,11]
[334619904,1723354239932,-82420.6137277,0.0001944,2]
[334619905,1723354239942,-1092.45305445,0.00019451,2]
[334619906,1723354239951,-194.66795086,0.00019451,2]
[334619907,1723354239960,-154.76784823,0.00019451,2]
[334619908,1723354239969,-154.76784823,0.00019451,2]
[334619909,1723354239978,-4858.76427069,0.00019455,2]
[334619910,1723354239988,-154.76784823,0.00019477,2]
[334619911,1723354239997,-174.58414756,0.00019477,2]
[334619912,1723354240006,-532.72454116,0.00019477,2]
[334619913,1723354240017,-188.09011397,0.00019477,2]
[334619914,1723354240027,-178.64182413,0.00019477,2]
[334619915,1723354240037,-349.64868508,0.00019477,2]
[334619916,1723354240049,-159.38116829,0.00019477,2]
[334619917,1723354240057,-543.53411254,0.00019477,2]
[334619918,1723354240067,-180.63105164,0.00019477,2]
[334619919,1723354240076,-932.99527997,0.00019477,2]
[334619920,1723354240089,-694.71379029,0.00019477,2]
[334619921,1723354240098,-151.0,0.00019537,2]
[334619922,1723354240107,-569.83076,0.00019537,2]
[334619923,1723354240116,-569.83076,0.00019537,2]
[334619924,1723354240125,-82420.6137277,0.00019537,2]
[334619925,1723354240134,-288.02845211,0.00019547,2]
[334619926,1723354240143,-159.38116829,0.00019547,2]
[334619927,1723354240152,-209.37253615,0.00019547,2]
[334619928,1723354240162,-728.15079492,0.00019547,2]
[334619929,1723354240171,-297.12317978,0.00019569,2]
[334619930,1723354240180,-158.820588,0.00019743,2]
[334619931,1723354240189,-175.475518,0.00019743,2]
[334619932,1723354240198,-175.413206,0.00019743,2]
[334619933,1723354240207,-158.820588,0.00019743,2]
[334619934,1723354240216,-167.655137,0.00019743,2]
[334619935,1723354240225,-173.866967,0.00019743,2]
[334619936,1723354240234,-164.967543,0.00019743,2]
[334619937,1723354240243,-5231.92874107,0.0001988,11]
[334619938,1723354240252,-451170.49267974,0.0001988,2]
[334619939,1723354240265,-5076.45071744,0.0001988,2]
[334619940,1723354241273,-123050.40743124,0.0001988,2]
[334619941,1723354241282,-151.0,0.0001988,2]
[334619942,1723354241292,-151.0,0.0001988,2]
[334619943,1723354241301,-151.0,0.0001988,2]
[334619944,1723354241310,-569.83076,0.0001988,2]
[334619945,1723354241319,-569.83076,0.0001988,2]
[334619946,1723354241329,-151.0,0.00019943,2]
[334619947,1723354241339,-4858.7642707,0.00019948,2]
[334619948,1723354241349,-157.76480899,0.00019999,2]
[334619949,1723354241358,-154.77557542,0.00019999,2]
[334619950,1723354241368,-413.29975831,0.00019999,2]
[334619951,1723354241378,-413.29975831,0.00019999,2]
[334619952,1723354241388,-816.94684465,0.00019999,4]
[334619953,1723354241397,-154.76784823,0.00019999,2]
[334619954,1723354241407,-1447.85335853,0.0002,2]
[334619955,1723354241419,-428.26090421,0.0002,2]
[334619956,1723354241428,-222.78569548,0.0002,2]
[334619957,1723354241437,-337.57235764,0.0002,2]
[334619958,1723354241446,-294.37791673,0.0002,2]
[334619959,1723354241456,-156.5036659,0.0002,2]
[334619960,1723354241465,-435.0,0.0002,2]
[334619961,1723354241475,-155.0327429,0.0002,2]
[334619962,1723354241485,-158.35455422,0.0002,2]
[334619963,1723354241495,-2683.24313729,0.0002,2]
[334619980,1723354243684,-1914.16873326,0.00018979,2]
[334619981,1723354243802,-2349.49999998,0.00018979,2]
[334620000,1723354273722,193.00206218,0.0001212,2]
[334620001,1723354274767,214.35991116,0.0001212,2]
[334620002,1723354275471,189.91186464,0.0001212,2]
[334620003,1723354285447,156.87111249,0.0001212,2]
[334620004,1723354286160,273.37336231,9.9e-05,2]
[334620005,1723354287086,154.78330261,0.0001212,2]
[334620006,1723354301969,273.37336231,9.9e-05,2]
[334620007,1723354371635,184.2285852,0.00012,2]
[334620008,1723354379550,304.190946,0.00012,2]
[334620009,1723354434142,388.45677896,0.00014545,2]
[334620010,1723354462774,155.00902309,0.00014545,2]
[334620011,1723354464157,519.77563875,0.00015,2]
[334620012,1723354472131,837.37473884,0.00014545,2]
[334620013,1723354500806,182.80731314,0.00014545,2]
[334620014,1723354596048,2654.81,0.0002333,30]
[334620015,1723354650574,172.227389,0.00014247,2]
[334620018,1723355235793,159.233379,0.00014247,2]
[334620019,1723355262065,834.10824571,0.00014247,2]
[334620025,1723355355174,-204.263553,0.00015137,2]
[334620026,1723355355197,-204.263553,0.00015179,2]
[334620027,1723355355219,-238.665543,0.00015193,2]
[334620028,1723355355242,-204.263553,0.0001522,2]
[334620029,1723355355265,-561.3996476,0.00015227,2]
[334620030,1723355355293,-204.263553,0.00015262,2]
[334620031,1723355355317,-204.263553,0.00015303,2]
[334620032,1723355355341,-204.263553,0.00015345,2]
[334620033,1723355355367,-204.263553,0.00015386,2]
[334620034,1723355355391,-204.263553,0.00015428,2]
[334620035,1723355355415,-204.263553,0.00015469,2]
[334620036,1723355355439,-204.263553,0.00015511,2]
[334620037,1723355355463,-204.263553,0.00015552,2]
[334620038,1723355355491,-204.263553,0.00015594,2]
[334620039,1723355370617,199.21576407,0.00014247,2]
[334620040,1723355370653,366.67599022,0.00014247,2]
[334620041,1723355380657,3608.33001858,0.00014247,2]
[334620043,1723355400674,265.44123749,9.9e-05,2]
[334620044,1723355416076,273.37336231,9.9e-05,2]
[334620077,1723355431910,225.75348869,9.9e-05,2]
[334620081,1723355431935,-204.263553,0.00015635,2]
[334620084,1723355431945,-204.263553,0.00015677,2]
[334620087,1723355431955,-204.263553,0.00015718,2]
[334620090,1723355431965,-252.8667389,0.00015751,2]
[334620093,1723355431974,-204.263553,0.0001576,2]
[334620097,1723355431983,-56.73591646,0.00015801,2]
[334620151,1723355438144,-147.52763654,0.00015801,2]
[334620152,1723355438155,-204.263553,0.00015843,2]
[334620153,1723355438167,-2695.86881046,0.00015851,2]
[334620154,1723355438181,-1083.8394677,0.00015851,2]
[334620155,1723355438194,-38598.06707931,0.00015851,2]
[334620156,1723355438204,-6538.1175645,0.00015851,2]
[334620157,1723355438214,-42377.77535747,0.00015851,2]
[334620158,1723355438225,-204.263553,0.00015885,2]
[334620159,1723355438235,-204.263553,0.00015926,2]
[334620161,1723355438245,-300.0,0.00015951,2]
[334620163,1723355438255,-300.0,0.00015951,2]
[334620165,1723355438266,-174.58831304,0.00015994,2]
[334620167,1723355438276,-305.349327,0.0001606,2]
[334620168,1723355438287,-335.4222218,0.0001606,2]
[334620169,1723355438298,-500.0,0.0001606,2]
[334620170,1723355438308,-500.0,0.0001606,2]
[334620171,1723355438318,-390.47582419,0.0001606,2]
[334620172,1723355438329,-359.64657374,0.0001606,2]
[334620173,1723355438344,-484.89692795,0.0001606,2]
[334620174,1723355438354,-514.27611353,0.0001606,2]
[334620175,1723355438363,-500.0,0.0001606,2]
[334620176,1723355438374,-500.0,0.0001606,2]
[334620177,1723355438387,-500.0,0.0001606,2]
[334620178,1723355438398,-500.0,0.0001606,2]
[334620179,1723355438408,-500.0,0.0001606,2]
[334620180,1723355438417,-500.0,0.0001606,2]
[334620181,1723355438426,-500.0,0.0001606,2]
[334620182,1723355438437,-500.0,0.0001606,2]
[334620183,1723355438447,-500.0,0.0001606,2]
[334620184,1723355438456,-500.0,0.0001606,2]
[334620185,1723355438467,-500.0,0.0001606,2]
[334620186,1723355438477,-500.0,0.0001606,2]
[334620187,1723355438487,-500.0,0.0001606,2]
[334620188,1723355438500,-500.0,0.0001606,2]
[334620189,1723355438511,-500.0,0.0001606,2]
[334620190,1723355438522,-500.0,0.0001606,2]
[334620191,1723355438531,-500.0,0.0001606,2]
[334620192,1723355438543,-500.0,0.0001606,2]
[334620193,1723355438553,-500.0,0.0001606,2]
[334620194,1723355438563,-500.0,0.0001606,2]
[334620195,1723355438574,-500.0,0.0001606,2]
[334620196,1723355438588,-500.0,0.0001606,2]
[334620197,1723355438597,-500.0,0.0001606,2]
[334620198,1723355438608,-500.0,0.0001606,2]
[334620199,1723355438617,-500.0,0.0001606,2]
[334620200,1723355438626,-500.0,0.0001606,2]
[334620201,1723355438635,-500.0,0.0001606,2]
[334620202,1723355438644,-500.0,0.0001606,2]
[334620203,1723355438653,-500.0,0.0001606,2]
[334620204,1723355438663,-500.0,0.0001606,2]
[334620205,1723355438672,-500.0,0.0001606,2]
[334620206,1723355438682,-500.0,0.0001606,2]
[334620207,1723355438691,-503.47722393,0.0001606,2]
[334620208,1723355438701,-500.0,0.0001606,2]
[334620209,1723355438710,-500.0,0.0001606,2]
[334620210,1723355438719,-500.0,0.0001606,2]
[334620211,1723355438729,-500.0,0.0001606,2]
[334620212,1723355438738,-500.0,0.0001606,2]
[334620213,1723355438749,-500.0,0.0001606,2]
[334620214,1723355438758,-500.0,0.0001606,2]
[334620215,1723355438768,-500.0,0.0001606,2]
[334620216,1723355438777,-500.0,0.0001606,2]
[334620217,1723355438787,-24900.0,0.00016062,2]
[334620218,1723355438797,-318.82475822,0.00016083,2]
[334620219,1723355438808,-199.21824354,0.00016083,2]
[334620220,1723355438818,-500.0,0.00016083,2]
[334620221,1723355438830,-500.0,0.00016083,2]
[334620222,1723355438839,-500.0,0.00016083,2]
[334620223,1723355438848,-500.0,0.00016083,2]
[334620224,1723355438857,-500.0,0.00016083,2]
[334620225,1723355438867,-500.0,0.00016083,2]
[334620226,1723355438877,-500.0,0.00016083,2]
[334620227,1723355438887,-500.0,0.00016083,2]
[334620228,1723355438898,-273.84270685,0.00016083,2]
[334620229,1723355438908,-80848.9458534,0.00016084,2]
[334620230,1723355438919,-332.43566674,0.00016159,2]
[334620231,1723355438929,-3000.0,0.00016253,2]
[334620232,1723355438941,-223.32245684,0.00016532,2]
[334620233,1723355438953,-223.32245684,0.00016532,2]
[334620234,1723355438963,-382.60390418,0.00017019,2]
[334620235,1723355438972,-178.64182413,0.00017019,2]
[334620236,1723355438983,-188.09011397,0.00017019,2]
[334620237,1723355438992,-174.67965412,0.00017019,2]
[334620238,1723355439005,-170.0,0.00017441,2]
[334620239,1723355439014,-420.0,0.00017546,2]
[334620240,1723355439024,-80848.9458534,0.00017772,2]
[334620241,1723355439035,-10000.0,0.00018,18]
[334620242,1723355439046,-7007.90701187,0.00018302,2]
[334620243,1723355439056,-2851.75877843,0.00018302,2]
[334620244,1723355439066,-319.99782942,0.00018316,2]
[334620245,1723355439075,-300.83451065,0.00018587,2]
[334620246,1723355439086,-250.53341872,0.00018679,2]
[334620247,1723355439096,-532.72454116,0.0001872,2]
[334620248,1723355439106,-209.37253615,0.00018799,2]
[334620249,1723355439115,-209.37253615,0.00018799,2]
[334620250,1723355439125,-5203.5035593,0.00018811,2]
[334620251,1723355439135,-686.8095988,0.00018825,2]
[334620252,1723355439145,-154.76784823,0.00018845,2]
[334620253,1723355439154,-2126.37973248,0.00018899,2]
[334620254,1723355439163,-2126.37973248,0.00018899,2]
[334620255,1723355439172,-492.86524914,0.00018899,2]
[334620256,1723355439181,-912.76636685,0.00018901,2]
[334620257,1723355439190,-155.1708846,0.00018901,2]
[334620258,1723355439200,-494.6780177,0.00018901,2]
[334620259,1723355439209,-196.1864387,0.00018901,2]
[334620260,1723355439219,-157.90486107,0.00018901,2]
[334620261,1723355439229,-279.74053787,0.00018901,2]
[334620262,1723355439238,-154.78689557,0.00018901,2]
[334620263,1723355439247,-194.74416001,0.00018901,2]
[334620264,1723355439258,-559.00369446,0.00018901,2]
[334620265,1723355439268,-315.348372,0.00018904,2]
[334620266,1723355439280,-154.76784823,0.00018921,2]